[Event "*** Titled Tuesday 3|2 Blitz"]
[Site "Chess.com"]
[Date "2017.03.07"]
[Round "11"]
[White "GianmarcoVaR"]
[Black "TheNextLevelFan"]
[Result "1-0"]
[WhiteElo "2447"]
[BlackElo "2392"]
[TimeControl "180+2"]
[EndTime "15:38:35 PST"]
[Termination "GianmarcoVaR won by resignation"]

1. d4 {[%clk 0:03:01.9]} 1... Nf6 {[%clk 0:03:00.3]} 2. c4 {[%clk 0:03:02.7]}
2... e6 {[%clk 0:03:00.9]} 3. g3 {[%clk 0:03:03.4]} 3... d5 {[%clk 0:03:01.9]}
4. Bg2 {[%clk 0:03:04.4]} 4... Be7 {[%clk 0:03:03.4]} 5. Nf3 {[%clk 0:03:06.1]}
5... O-O {[%clk 0:03:04.4]} 6. O-O {[%clk 0:03:08]} 6... dxc4 {[%clk 0:03:06]}
7. Qc2 {[%clk 0:03:09.6]} 7... a6 {[%clk 0:03:06.2]} 8. a4 {[%clk 0:03:10.9]}
8... Bd7 {[%clk 0:03:06.2]} 9. Qxc4 {[%clk 0:03:11.8]} 9... Bc6 {[%clk
0:03:06.7]} 10. Bg5 {[%clk 0:03:11.5]} 10... Nbd7 {[%clk 0:03:06.3]} 11. Nc3
{[%clk 0:03:06.9]} 11... h6 {[%clk 0:03:05.6]} 12. Bxf6 {[%clk 0:03:07.6]} 12...
Nxf6 {[%clk 0:03:05.6]} 13. Rfd1 {[%clk 0:03:01.1]} 13... Bd6 {[%clk 0:02:55.8]}
14. e3 {[%clk 0:02:53.9]} 14... Qe7 {[%clk 0:02:55.6]} 15. Qe2 {[%clk 0:02:55]}
15... Bb4 {[%clk 0:02:50.9]} 16. Ne5 {[%clk 0:02:56]} 16... Bxg2 {[%clk
0:02:51]} 17. Kxg2 {[%clk 0:02:57.9]} 17... c5 {[%clk 0:02:44.5]} 18. Rac1
{[%clk 0:02:20.8]} 18... Rac8 {[%clk 0:02:40.2]} 19. Na2 {[%clk 0:02:09.7]}
19... cxd4 {[%clk 0:02:27.3]} 20. Rxc8 {[%clk 0:02:08.9]} 20... Rxc8 {[%clk
0:02:27.3]} 21. Nxb4 {[%clk 0:02:10.6]} 21... Qxb4 {[%clk 0:02:27.2]} 22. Rxd4
{[%clk 0:02:12.5]} 22... Qa5 {[%clk 0:02:19.2]} 23. Nf3 {[%clk 0:02:05.4]} 23...
e5 {[%clk 0:02:05.7]} 24. b4 {[%clk 0:02:05.9]} 24... Qxa4 {[%clk 0:02:06.1]}
25. Nxe5 {[%clk 0:02:06.5]} 25... Qe8 {[%clk 0:01:40.2]} 26. Nc4 {[%clk
0:02:00.8]} 26... Qe6 {[%clk 0:01:20.6]} 27. Qd3 {[%clk 0:01:58.6]} 27... g6
{[%clk 0:01:10]} 28. e4 {[%clk 0:01:55.2]} 28... b5 {[%clk 0:00:46.4]} 29. Ne3
{[%clk 0:01:51.6]} 29... Re8 {[%clk 0:00:44.8]} 30. Nd5 {[%clk 0:01:45.8]} 30...
Nxd5 {[%clk 0:00:28.1]} 31. exd5 {[%clk 0:01:47.1]} 31... Qd6 {[%clk 0:00:29.1]}
32. Re4 {[%clk 0:01:48.3]} 32... Rd8 {[%clk 0:00:21.7]} 33. Qd4 {[%clk
0:01:49.6]} 33... Kh7 {[%clk 0:00:19.8]} 34. Re5 {[%clk 0:01:49.6]} 34... Rc8
{[%clk 0:00:16.8]} 35. Re4 {[%clk 0:00:53.9]} 35... Rc4 {[%clk 0:00:15.6]} 36.
Qe3 {[%clk 0:00:55.2]} 36... Qxd5 {[%clk 0:00:16.5]} 37. f3 {[%clk 0:00:56.1]}
37... Rc2+ {[%clk 0:00:15]} 38. Kh3 {[%clk 0:00:57]} 38... Qf5+ {[%clk
0:00:13.1]} 39. g4 {[%clk 0:00:50.9]} 39... Qf6 {[%clk 0:00:13.5]} 40. Rf4
{[%clk 0:00:44.8]} 40... Qg7 {[%clk 0:00:10.5]} 41. Qe7 {[%clk 0:00:25]} 41...
Kg8 {[%clk 0:00:10.9]} 42. Rf6 {[%clk 0:00:21.6]} 42... Rb2 {[%clk 0:00:06.6]}
43. Rxa6 {[%clk 0:00:17.9]} 43... Qf8 {[%clk 0:00:07.6]} 44. Qe4 {[%clk
0:00:16.1]} 44... Qxb4 {[%clk 0:00:07.9]} 45. Ra8+ {[%clk 0:00:16.8]} 45... Kg7
{[%clk 0:00:08.2]} 46. Qe5+ {[%clk 0:00:17.4]} 46... f6 {[%clk 0:00:08.6]} 47.
Qc7+ {[%clk 0:00:18.3]} 1-0

[Event "*** Titled Tuesday 3|2 Blitz"]
[Site "Chess.com"]
[Date "2017.03.07"]
[Round "11"]
[White "kleinebeer98"]
[Black "GMMelik"]
[Result "0-1"]
[WhiteElo "2510"]
[BlackElo "2461"]
[TimeControl "180+2"]
[EndTime "15:38:38 PST"]
[Termination "GMMelik won by resignation"]

1. e4 {[%clk 0:03:02]} 1... e5 {[%clk 0:03:00.5]} 2. Nf3 {[%clk 0:03:03.1]} 2...
Nc6 {[%clk 0:03:01.5]} 3. Bb5 {[%clk 0:03:04.7]} 3... f5 {[%clk 0:03:01.5]} 4.
Nc3 {[%clk 0:03:01]} 4... fxe4 {[%clk 0:03:02]} 5. Nxe4 {[%clk 0:03:02.9]} 5...
Nf6 {[%clk 0:03:03]} 6. Qe2 {[%clk 0:03:04.4]} 6... d5 {[%clk 0:03:03.8]} 7.
Nxf6+ {[%clk 0:03:05.4]} 7... gxf6 {[%clk 0:03:05.7]} 8. d4 {[%clk 0:03:06.9]}
8... Bg7 {[%clk 0:03:07.1]} 9. dxe5 {[%clk 0:03:07.9]} 9... O-O {[%clk
0:03:07.5]} 10. Bxc6 {[%clk 0:03:09.4]} 10... bxc6 {[%clk 0:02:59.3]} 11. e6
{[%clk 0:03:10.8]} 11... Re8 {[%clk 0:02:59.3]} 12. O-O {[%clk 0:03:11]} 12...
Bxe6 {[%clk 0:02:59.7]} 13. Nd4 {[%clk 0:03:08.8]} 13... Qd7 {[%clk 0:03:00.7]}
14. Qf3 {[%clk 0:03:02.6]} 14... c5 {[%clk 0:02:41.4]} 15. Nb3 {[%clk
0:02:58.5]} 15... c4 {[%clk 0:02:30.7]} 16. Nc5 {[%clk 0:02:57.3]} 16... Qd6
{[%clk 0:02:30.4]} 17. Be3 {[%clk 0:02:50.1]} 17... Bf7 {[%clk 0:02:22.6]} 18.
Rad1 {[%clk 0:02:46.8]} 18... c6 {[%clk 0:02:03.6]} 19. Bd4 {[%clk 0:02:31.9]}
19... Bg6 {[%clk 0:01:57.5]} 20. c3 {[%clk 0:02:28.9]} 20... Rab8 {[%clk
0:01:54.9]} 21. b4 {[%clk 0:02:24.6]} 21... cxb3 {[%clk 0:01:51.9]} 22. axb3
{[%clk 0:02:25.9]} 22... Rb5 {[%clk 0:01:49.7]} 23. b4 {[%clk 0:02:07.1]} 23...
a5 {[%clk 0:01:48.2]} 24. Na6 {[%clk 0:01:06]} 24... axb4 {[%clk 0:01:47.8]} 25.
cxb4 {[%clk 0:00:58.8]} 25... c5 {[%clk 0:01:23.5]} 26. Nxc5 {[%clk 0:00:47.2]}
26... Rxb4 {[%clk 0:01:22.4]} 27. Be3 {[%clk 0:00:47.2]} 27... d4 {[%clk
0:01:17.3]} 28. Nb7 {[%clk 0:00:33.6]} 28... Qb6 {[%clk 0:01:09]} 29. Rxd4
{[%clk 0:00:09.2]} 29... Qxb7 {[%clk 0:00:53.7]} 30. Rxb4 {[%clk 0:00:07.8]}
30... Qxb4 {[%clk 0:00:54.7]} 31. Rc1 {[%clk 0:00:09]} 31... Qe4 {[%clk
0:00:48.3]} 32. Qg3 {[%clk 0:00:10.2]} 32... Bh6 {[%clk 0:00:42.2]} 33. Re1
{[%clk 0:00:03.5]} 33... Bxe3 {[%clk 0:00:42.5]} 34. fxe3 {[%clk 0:00:05]} 34...
Rc8 {[%clk 0:00:41.4]} 35. h4 {[%clk 0:00:05.4]} 35... h5 {[%clk 0:00:38.4]} 36.
Rf1 {[%clk 0:00:06.1]} 36... Kg7 {[%clk 0:00:25]} 37. Rf4 {[%clk 0:00:06.9]}
37... Rc1+ {[%clk 0:00:21.7]} 38. Kh2 {[%clk 0:00:08.2]} 38... Qb1 {[%clk
0:00:22.5]} 39. Qf2 {[%clk 0:00:04.7]} 39... Rh1+ {[%clk 0:00:21.3]} 40. Kg3
{[%clk 0:00:06.2]} 40... Qb8 {[%clk 0:00:16.5]} 41. Qd2 {[%clk 0:00:07.4]} 41...
Qe5 {[%clk 0:00:16.6]} 42. Qd7+ {[%clk 0:00:08]} 42... Bf7 {[%clk 0:00:17.6]}
43. Qd2 {[%clk 0:00:07.4]} 43... Rf1 {[%clk 0:00:17.6]} 44. Kh2 {[%clk
0:00:05.6]} 44... Rxf4 {[%clk 0:00:18.4]} 45. exf4 {[%clk 0:00:07.5]} 45... Qe4
{[%clk 0:00:19.7]} 46. Qf2 {[%clk 0:00:09.1]} 46... Bd5 {[%clk 0:00:20.4]} 47.
Qg3+ {[%clk 0:00:10.3]} 47... Kf7 {[%clk 0:00:21.8]} 48. Qf2 {[%clk 0:00:12.1]}
48... Ke6 {[%clk 0:00:22.8]} 49. Kh3 {[%clk 0:00:12.2]} 49... Kf5 {[%clk
0:00:21.1]} 50. Qd2 {[%clk 0:00:10.6]} 50... Qxg2+ {[%clk 0:00:20.5]} 0-1

[Event "*** Titled Tuesday 3|2 Blitz"]
[Site "Chess.com"]
[Date "2017.03.07"]
[Round "11"]
[White "MateusViageiro"]
[Black "amaidel"]
[Result "0-1"]
[WhiteElo "2218"]
[BlackElo "2433"]
[TimeControl "180+2"]
[EndTime "15:38:38 PST"]
[Termination "amaidel won by resignation"]

1. d4 {[%clk 0:03:01.9]} 1... f5 {[%clk 0:03:00.3]} 2. Nf3 {[%clk 0:03:03.3]}
2... Nf6 {[%clk 0:03:01.1]} 3. g3 {[%clk 0:03:04.4]} 3... g6 {[%clk 0:03:02.3]}
4. Bg2 {[%clk 0:03:05.9]} 4... Bg7 {[%clk 0:03:03.5]} 5. O-O {[%clk 0:03:07.5]}
5... O-O {[%clk 0:03:04.5]} 6. c4 {[%clk 0:03:08.6]} 6... d6 {[%clk 0:03:05.7]}
7. d5 {[%clk 0:03:07.3]} 7... Qe8 {[%clk 0:03:06.2]} 8. Nc3 {[%clk 0:03:07.3]}
8... Na6 {[%clk 0:03:06.1]} 9. Be3 {[%clk 0:03:04.1]} 9... Bd7 {[%clk
0:03:04.8]} 10. a3 {[%clk 0:03:03.2]} 10... c6 {[%clk 0:03:04]} 11. Bd4 {[%clk
0:03:03.1]} 11... c5 {[%clk 0:03:02.5]} 12. Be3 {[%clk 0:03:02.1]} 12... Nc7
{[%clk 0:03:02.6]} 13. Rb1 {[%clk 0:02:52.1]} 13... b5 {[%clk 0:03:02.2]} 14. b4
{[%clk 0:02:46.9]} 14... cxb4 {[%clk 0:02:56.3]} 15. axb4 {[%clk 0:02:45.8]}
15... bxc4 {[%clk 0:02:54.2]} 16. Nd4 {[%clk 0:02:43.1]} 16... Ng4 {[%clk
0:02:52.7]} 17. Qd2 {[%clk 0:02:33.5]} 17... Nxe3 {[%clk 0:02:43.8]} 18. Qxe3
{[%clk 0:02:28.2]} 18... Rb8 {[%clk 0:02:43.9]} 19. Rfc1 {[%clk 0:02:12.5]}
19... Kh8 {[%clk 0:02:32.1]} 20. Kh1 {[%clk 0:02:02.2]} 20... a6 {[%clk
0:02:30.8]} 21. f4 {[%clk 0:01:58.5]} 21... Nb5 {[%clk 0:02:30.7]} 22. Ncxb5
{[%clk 0:01:48.5]} 22... axb5 {[%clk 0:02:31.7]} 23. Nc6 {[%clk 0:01:46.7]}
23... Rb7 {[%clk 0:02:23.7]} 24. Na5 {[%clk 0:01:38]} 24... Rc7 {[%clk
0:02:18.5]} 25. Qb6 {[%clk 0:01:36.7]} 25... Qb8 {[%clk 0:02:18.3]} 26. Qf2
{[%clk 0:01:31.3]} 26... e5 {[%clk 0:02:16.1]} 27. dxe6 {[%clk 0:01:28]} 27...
Bxe6 {[%clk 0:02:17.1]} 28. e4 {[%clk 0:01:28.4]} 28... fxe4 {[%clk 0:02:14.9]}
29. Bxe4 {[%clk 0:01:29.4]} 29... d5 {[%clk 0:02:16]} 30. Bg2 {[%clk 0:01:30.4]}
30... Bf5 {[%clk 0:02:08]} 31. Bxd5 {[%clk 0:01:21.6]} 31... Bxb1 {[%clk
0:02:07.7]} 32. Rxb1 {[%clk 0:01:22.7]} 32... Rd8 {[%clk 0:02:05.7]} 33. Bg2
{[%clk 0:01:16.9]} 33... Rd6 {[%clk 0:01:55.7]} 34. Re1 {[%clk 0:01:11.5]} 34...
Qd8 {[%clk 0:01:51.2]} 35. Nb7 {[%clk 0:01:10.6]} 35... Rxb7 {[%clk 0:01:47.2]}
36. Bxb7 {[%clk 0:01:09.2]} 36... Bc3 {[%clk 0:01:43.5]} 37. Re2 {[%clk
0:00:56]} 37... Rd1+ {[%clk 0:01:42.5]} 38. Kg2 {[%clk 0:00:55.2]} 38... Bd4
{[%clk 0:01:34.4]} 39. Qf3 {[%clk 0:00:43.4]} 39... Rg1+ {[%clk 0:01:33.5]} 40.
Kh3 {[%clk 0:00:44.1]} 40... Qd7+ {[%clk 0:01:34.1]} 41. g4 {[%clk 0:00:44.9]}
41... h5 {[%clk 0:01:34.4]} 42. Rg2 {[%clk 0:00:18.7]} 42... hxg4+ {[%clk
0:01:25.8]} 43. Qxg4 {[%clk 0:00:16.3]} 43... Qxb7 {[%clk 0:01:02.1]} 44. Rxg1
{[%clk 0:00:11.7]} 44... Bxg1 {[%clk 0:01:02.8]} 45. Qxg1 {[%clk 0:00:12.2]}
45... Qf3+ {[%clk 0:01:00.2]} 46. Qg3 {[%clk 0:00:05.6]} 46... Qxg3+ {[%clk
0:00:56]} 47. hxg3 {[%clk 0:00:06.2]} 47... c3 {[%clk 0:00:57.1]} 0-1

[Event "*** Titled Tuesday 3|2 Blitz"]
[Site "Chess.com"]
[Date "2017.03.07"]
[Round "11"]
[White "gkchesstiger"]
[Black "Ginger_GM"]
[Result "1-0"]
[WhiteElo "2642"]
[BlackElo "2507"]
[TimeControl "180+2"]
[EndTime "15:38:43 PST"]
[Termination "gkchesstiger won by resignation"]

1. c4 {[%clk 0:03:02]} 1... f5 {[%clk 0:02:58.5]} 2. Nc3 {[%clk 0:03:03.3]} 2...
Nf6 {[%clk 0:02:58.5]} 3. d3 {[%clk 0:03:04.1]} 3... e5 {[%clk 0:02:58.5]} 4. e4
{[%clk 0:03:05.2]} 4... fxe4 {[%clk 0:02:57.8]} 5. dxe4 {[%clk 0:03:05.1]} 5...
Nc6 {[%clk 0:02:58.7]} 6. Be3 {[%clk 0:03:02.8]} 6... Bb4 {[%clk 0:02:55.4]} 7.
Bd3 {[%clk 0:03:01.7]} 7... d6 {[%clk 0:02:51.2]} 8. f3 {[%clk 0:02:59.2]} 8...
Nh5 {[%clk 0:02:40.6]} 9. Ne2 {[%clk 0:02:59.1]} 9... Qh4+ {[%clk 0:02:40.2]}
10. Bf2 {[%clk 0:02:53.6]} 10... Qg5 {[%clk 0:02:40.4]} 11. O-O {[%clk
0:02:54.1]} 11... Bxc3 {[%clk 0:02:28.3]} 12. bxc3 {[%clk 0:02:53.7]} 12... b6
{[%clk 0:02:23.7]} 13. Kh1 {[%clk 0:02:44.5]} 13... O-O {[%clk 0:02:21.8]} 14.
Re1 {[%clk 0:02:27.6]} 14... Be6 {[%clk 0:02:12.6]} 15. Ng3 {[%clk 0:02:11.7]}
15... Nf4 {[%clk 0:02:09.6]} 16. Bf1 {[%clk 0:02:10.5]} 16... h5 {[%clk
0:02:07.7]} 17. Be3 {[%clk 0:01:58.2]} 17... Na5 {[%clk 0:01:57.3]} 18. Qa4
{[%clk 0:01:41]} 18... Qg6 {[%clk 0:01:40.8]} 19. c5 {[%clk 0:01:38.2]} 19... h4
{[%clk 0:01:34.9]} 20. Nf5 {[%clk 0:01:35.6]} 20... Bxf5 {[%clk 0:01:29.3]} 21.
exf5 {[%clk 0:01:36.3]} 21... Qxf5 {[%clk 0:01:28.7]} 22. cxd6 {[%clk
0:01:36.1]} 22... cxd6 {[%clk 0:01:29.1]} 23. Rad1 {[%clk 0:01:31.8]} 23... Rad8
{[%clk 0:01:27.7]} 24. h3 {[%clk 0:01:26.3]} 24... g5 {[%clk 0:01:13.2]} 25. Bf2
{[%clk 0:01:24.2]} 25... Kg7 {[%clk 0:01:12.1]} 26. Rd2 {[%clk 0:01:24.5]} 26...
d5 {[%clk 0:01:07.4]} 27. Rxe5 {[%clk 0:01:23.7]} 27... Qg6 {[%clk 0:00:54.3]}
28. Re7+ {[%clk 0:01:21.9]} 28... Rf7 {[%clk 0:00:52.2]} 29. Bd4+ {[%clk
0:01:22.3]} 29... Kh6 {[%clk 0:00:52.1]} 30. Re8 {[%clk 0:01:17.5]} 30... Rf8
{[%clk 0:00:48.8]} 31. Rxf8 {[%clk 0:01:14.6]} 31... Rxf8 {[%clk 0:00:49.6]} 32.
Rd1 {[%clk 0:01:07.5]} 32... Nh5 {[%clk 0:00:49.2]} 33. Bd3 {[%clk 0:01:07]}
33... Ng3+ {[%clk 0:00:49.7]} 34. Kg1 {[%clk 0:01:07]} 34... Qe6 {[%clk
0:00:50]} 35. Bf2 {[%clk 0:01:01.2]} 35... Re8 {[%clk 0:00:50.3]} 36. f4 {[%clk
0:01:01.7]} 36... Nc4 {[%clk 0:00:46.8]} 37. fxg5+ {[%clk 0:01:02]} 37... Kxg5
{[%clk 0:00:48.7]} 38. Bxc4 {[%clk 0:00:53.7]} 38... dxc4 {[%clk 0:00:50.6]} 39.
Qxa7 {[%clk 0:00:49.2]} 39... Re7 {[%clk 0:00:39.9]} 40. Qb8 {[%clk 0:00:46.3]}
40... Ne2+ {[%clk 0:00:38.5]} 41. Kh1 {[%clk 0:00:46.2]} 41... Nxc3 {[%clk
0:00:37.7]} 42. Rd6 {[%clk 0:00:40.3]} 42... Qf7 {[%clk 0:00:36.4]} 43. Qxb6
{[%clk 0:00:37.7]} 43... Ne4 {[%clk 0:00:33.4]} 44. Be3+ {[%clk 0:00:38.6]}
44... Kf5 {[%clk 0:00:29.8]} 45. Rd1 {[%clk 0:00:36.5]} 45... Ng3+ {[%clk
0:00:29.7]} 46. Kg1 {[%clk 0:00:36.9]} 46... Qe6 {[%clk 0:00:30.7]} 47. Qc5+
{[%clk 0:00:35.4]} 47... Qe5 {[%clk 0:00:30.4]} 48. Rd5 {[%clk 0:00:35.6]} 48...
Ne2+ {[%clk 0:00:16.8]} 49. Kf2 {[%clk 0:00:34.7]} 49... c3 {[%clk 0:00:18.1]}
50. Rxe5+ {[%clk 0:00:34.7]} 50... Rxe5 {[%clk 0:00:18.6]} 1-0

[Event "*** Titled Tuesday 3|2 Blitz"]
[Site "Chess.com"]
[Date "2017.03.07"]
[Round "11"]
[White "SabinaFoisor"]
[Black "CM_Perligero"]
[Result "0-1"]
[WhiteElo "2177"]
[BlackElo "2155"]
[TimeControl "180+2"]
[EndTime "15:39:28 PST"]
[Termination "CM_Perligero won by checkmate"]

1. d4 {[%clk 0:03:02]} 1... Nf6 {[%clk 0:02:48.2]} 2. c4 {[%clk 0:03:01.8]} 2...
e6 {[%clk 0:02:48.9]} 3. Nc3 {[%clk 0:03:02.8]} 3... d5 {[%clk 0:02:49.2]} 4.
cxd5 {[%clk 0:03:03.1]} 4... exd5 {[%clk 0:02:50.2]} 5. Bg5 {[%clk 0:03:04.1]}
5... c6 {[%clk 0:02:50.8]} 6. e3 {[%clk 0:03:02.6]} 6... Nbd7 {[%clk 0:02:37.1]}
7. Bd3 {[%clk 0:03:02]} 7... Bb4 {[%clk 0:02:35.3]} 8. Ne2 {[%clk 0:03:00.9]}
8... O-O {[%clk 0:02:34]} 9. O-O {[%clk 0:03:01.3]} 9... Bd6 {[%clk 0:02:34.5]}
10. Qc2 {[%clk 0:03:00.1]} 10... h6 {[%clk 0:02:34.2]} 11. Bh4 {[%clk
0:03:00.6]} 11... Qc7 {[%clk 0:02:35.1]} 12. Bg3 {[%clk 0:03:01.1]} 12... a6
{[%clk 0:02:28.9]} 13. Rad1 {[%clk 0:02:57.1]} 13... Re8 {[%clk 0:02:26.3]} 14.
Qd2 {[%clk 0:02:56.7]} 14... Nh5 {[%clk 0:02:21.9]} 15. Bxd6 {[%clk 0:02:55]}
15... Qxd6 {[%clk 0:02:23]} 16. a3 {[%clk 0:02:55]} 16... Ndf6 {[%clk
0:02:16.4]} 17. Ng3 {[%clk 0:02:55.4]} 17... Ng4 {[%clk 0:02:11.9]} 18. Be2
{[%clk 0:02:44.3]} 18... Nxg3 {[%clk 0:02:00.5]} 19. hxg3 {[%clk 0:02:42.6]}
19... h5 {[%clk 0:01:55.4]} 20. Bf3 {[%clk 0:02:37.7]} 20... Bf5 {[%clk
0:01:50.4]} 21. Rfe1 {[%clk 0:02:24.3]} 21... h4 {[%clk 0:01:51.7]} 22. gxh4
{[%clk 0:02:06.7]} 22... Qh2+ {[%clk 0:01:49.9]} 23. Kf1 {[%clk 0:02:07.9]}
23... Qxh4 {[%clk 0:01:44]} 24. Bxg4 {[%clk 0:01:56.4]} 24... Bxg4 {[%clk
0:01:43.4]} 25. f3 {[%clk 0:01:55.7]} 25... Qh1+ {[%clk 0:01:38.3]} 26. Kf2
{[%clk 0:01:52.9]} 26... Qh4+ {[%clk 0:01:38.6]} 27. Kg1 {[%clk 0:01:51.4]}
27... Bf5 {[%clk 0:01:32.3]} 28. Qf2 {[%clk 0:01:31.4]} 28... Qg5 {[%clk
0:01:29.3]} 29. e4 {[%clk 0:01:23.5]} 29... dxe4 {[%clk 0:01:19.6]} 30. fxe4
{[%clk 0:01:25.4]} 30... Bg4 {[%clk 0:01:19.3]} 31. Rd3 {[%clk 0:01:23.6]} 31...
Re6 {[%clk 0:01:17.4]} 32. Rg3 {[%clk 0:01:22.1]} 32... Rh6 {[%clk 0:01:10.6]}
33. Rf1 {[%clk 0:01:15.1]} 33... Qh5 {[%clk 0:01:08.5]} 34. Qf4 {[%clk 0:01:03]}
34... Qh2+ {[%clk 0:01:02.3]} 35. Kf2 {[%clk 0:01:03.8]} 35... Rf6 {[%clk
0:01:02.4]} 36. Qxf6 {[%clk 0:01:02.1]} 36... gxf6 {[%clk 0:01:01.7]} 37. Rxg4+
{[%clk 0:01:02.9]} 37... Kf8 {[%clk 0:01:02.3]} 38. Ne2 {[%clk 0:00:56.9]} 38...
Qh5 {[%clk 0:00:53.2]} 39. Rf4 {[%clk 0:00:51.5]} 39... Qg5 {[%clk 0:00:45.8]}
40. Kg1 {[%clk 0:00:37.5]} 40... Ke7 {[%clk 0:00:38.2]} 41. R1f2 {[%clk
0:00:23.9]} 41... Rg8 {[%clk 0:00:34.8]} 42. Nc1 {[%clk 0:00:20.5]} 42... Rg6
{[%clk 0:00:21.5]} 43. Nd3 {[%clk 0:00:21.3]} 43... Qb5 {[%clk 0:00:21.4]} 44.
Nc5 {[%clk 0:00:21.4]} 44... Qc4 {[%clk 0:00:18.5]} 45. e5 {[%clk 0:00:17.5]}
45... fxe5 {[%clk 0:00:17.1]} 46. Rxf7+ {[%clk 0:00:17.1]} 46... Qxf7 {[%clk
0:00:18]} 47. Rxf7+ {[%clk 0:00:18]} 47... Kxf7 {[%clk 0:00:19.3]} 48. dxe5
{[%clk 0:00:19.9]} 48... b6 {[%clk 0:00:17.6]} 49. Nxa6 {[%clk 0:00:20.1]} 49...
Ke6 {[%clk 0:00:18]} 50. Nb4 {[%clk 0:00:20.4]} 50... c5 {[%clk 0:00:18.2]} 51.
Nd3 {[%clk 0:00:20.1]} 51... Rg3 {[%clk 0:00:16.9]} 52. Nc1 {[%clk 0:00:19.8]}
52... Kxe5 {[%clk 0:00:17.2]} 53. Kf2 {[%clk 0:00:20.9]} 53... Rg7 {[%clk
0:00:16.2]} 54. Kf3 {[%clk 0:00:21.5]} 54... Kd4 {[%clk 0:00:16.4]} 55. g4
{[%clk 0:00:21.2]} 55... Rf7+ {[%clk 0:00:15.1]} 56. Kg3 {[%clk 0:00:21.7]}
56... Rf1 {[%clk 0:00:15.7]} 57. Ne2+ {[%clk 0:00:21.6]} 57... Ke3 {[%clk
0:00:16.2]} 58. Nc3 {[%clk 0:00:22.5]} 58... Rg1+ {[%clk 0:00:16.5]} 59. Kh4
{[%clk 0:00:22.8]} 59... Kf4 {[%clk 0:00:17.7]} 60. Nd5+ {[%clk 0:00:23.9]}
60... Kf3 {[%clk 0:00:17.1]} 61. g5 {[%clk 0:00:24.9]} 61... Rh1# {[%clk
0:00:17.4]} 0-1

[Event "*** Titled Tuesday 3|2 Blitz"]
[Site "Chess.com"]
[Date "2017.03.07"]
[Round "11"]
[White "GM_Splinter"]
[Black "popov_m"]
[Result "1-0"]
[WhiteElo "2337"]
[BlackElo "2403"]
[TimeControl "180+2"]
[EndTime "15:39:29 PST"]
[Termination "GM_Splinter won by resignation"]

1. e4 {[%clk 0:03:02]} 1... e6 {[%clk 0:02:56.8]} 2. d4 {[%clk 0:03:02.3]} 2...
d5 {[%clk 0:02:56.9]} 3. Nd2 {[%clk 0:03:03.9]} 3... Nc6 {[%clk 0:02:57.2]} 4.
Ngf3 {[%clk 0:03:03.8]} 4... Nf6 {[%clk 0:02:58.4]} 5. e5 {[%clk 0:03:05]} 5...
Nd7 {[%clk 0:02:59.6]} 6. Bd3 {[%clk 0:03:06.3]} 6... f6 {[%clk 0:03:00.3]} 7.
exf6 {[%clk 0:03:04.7]} 7... Nxf6 {[%clk 0:03:01.5]} 8. O-O {[%clk 0:03:01.5]}
8... Bd6 {[%clk 0:03:00.9]} 9. Re1 {[%clk 0:02:58.3]} 9... O-O {[%clk 0:03:02]}
10. Nf1 {[%clk 0:02:59.5]} 10... Bd7 {[%clk 0:02:53.2]} 11. c3 {[%clk
0:02:57.6]} 11... Qe8 {[%clk 0:02:30.2]} 12. Ne5 {[%clk 0:02:36.5]} 12... Bxe5
{[%clk 0:01:51.5]} 13. dxe5 {[%clk 0:02:36.9]} 13... Nh5 {[%clk 0:01:53.2]} 14.
Ng3 {[%clk 0:02:00.5]} 14... Nxg3 {[%clk 0:01:41.4]} 15. hxg3 {[%clk 0:02:02.4]}
15... Qf7 {[%clk 0:01:42]} 16. Qc2 {[%clk 0:02:03.5]} 16... g6 {[%clk
0:01:41.9]} 17. Bh6 {[%clk 0:02:03.5]} 17... Rfe8 {[%clk 0:01:40.8]} 18. Re3
{[%clk 0:01:56.7]} 18... Ne7 {[%clk 0:01:18.1]} 19. g4 {[%clk 0:01:41]} 19...
Kh8 {[%clk 0:01:06.7]} 20. Rf3 {[%clk 0:01:38.5]} 20... Qg8 {[%clk 0:01:07.2]}
21. Bg5 {[%clk 0:01:36.1]} 21... Kg7 {[%clk 0:00:53]} 22. Bf6+ {[%clk
0:01:15.3]} 22... Kf7 {[%clk 0:00:53.4]} 23. Qd2 {[%clk 0:01:17]} 23... Rf8
{[%clk 0:00:34.8]} 24. Qg5 {[%clk 0:01:04.2]} 24... Nc6 {[%clk 0:00:33.1]} 25.
Bd8+ {[%clk 0:00:57.8]} 25... Ke8 {[%clk 0:00:31.6]} 26. Bxc7 {[%clk 0:00:58.6]}
26... Rxf3 {[%clk 0:00:27.2]} 27. gxf3 {[%clk 0:01:00.5]} 27... Qf7 {[%clk
0:00:27.2]} 28. f4 {[%clk 0:00:56.2]} 28... Ne7 {[%clk 0:00:23.7]} 29. Bd6
{[%clk 0:00:54.1]} 29... Bc6 {[%clk 0:00:24]} 30. Re1 {[%clk 0:00:44.1]} 30...
Kd7 {[%clk 0:00:24.4]} 31. Kh2 {[%clk 0:00:31.5]} 31... Rf8 {[%clk 0:00:20.3]}
32. Kg3 {[%clk 0:00:32.6]} 32... Rg8 {[%clk 0:00:21.9]} 33. Bxe7 {[%clk
0:00:19.9]} 33... Qxe7 {[%clk 0:00:22.8]} 34. Qxe7+ {[%clk 0:00:21]} 34... Kxe7
{[%clk 0:00:24.5]} 35. Rh1 {[%clk 0:00:22.5]} 35... Rg7 {[%clk 0:00:24.1]} 36.
Rh6 {[%clk 0:00:20.8]} 36... Kf8 {[%clk 0:00:24.7]} 37. Kh4 {[%clk 0:00:22]}
37... Kg8 {[%clk 0:00:25.8]} 38. Kg5 {[%clk 0:00:23.1]} 38... Rf7 {[%clk
0:00:27.3]} 39. f5 {[%clk 0:00:17.4]} 39... gxf5 {[%clk 0:00:18.4]} 40. gxf5
{[%clk 0:00:19.3]} 40... exf5 {[%clk 0:00:16.4]} 41. Bxf5 {[%clk 0:00:20]} 41...
Rg7+ {[%clk 0:00:17.7]} 42. Kf6 {[%clk 0:00:16.5]} 42... Rf7+ {[%clk 0:00:18.2]}
43. Kg5 {[%clk 0:00:16.6]} 43... Rg7+ {[%clk 0:00:19.7]} 44. Kf4 {[%clk
0:00:17.9]} 44... Rg2 {[%clk 0:00:10.3]} 45. Ke3 {[%clk 0:00:17.9]} 45... Rg5
{[%clk 0:00:09.9]} 46. Rf6 {[%clk 0:00:12.3]} 46... h5 {[%clk 0:00:08.2]} 47. e6
{[%clk 0:00:10.9]} 47... Rg7 {[%clk 0:00:06.6]} 48. Kf4 {[%clk 0:00:09.1]} 48...
h4 {[%clk 0:00:07.5]} 49. Ke5 {[%clk 0:00:09.9]} 49... Rg5 {[%clk 0:00:05.4]}
50. Rh6 {[%clk 0:00:09.9]} 50... d4 {[%clk 0:00:03.8]} 51. cxd4 {[%clk 0:00:09]}
51... Kf8 {[%clk 0:00:05.7]} 52. Rxh4 {[%clk 0:00:09.7]} 52... Bg2 {[%clk
0:00:04.1]} 53. Rh8+ {[%clk 0:00:10.1]} 53... Kg7 {[%clk 0:00:05.2]} 54. Rh7+
{[%clk 0:00:10.8]} 54... Kg8 {[%clk 0:00:06.2]} 55. Rf7 {[%clk 0:00:09.9]} 55...
Bh3 {[%clk 0:00:05.2]} 56. d5 {[%clk 0:00:10.8]} 56... Bg2 {[%clk 0:00:04.7]}
57. d6 {[%clk 0:00:11.5]} 1-0